bitfinex/quotes_SOLUSD_20250822
["timestamp","ask_amount","ask_price","bid_price","bid_amount"]
[1755864037150,10.0,180.04,180.03,4.8948177]
[1755864037662,10.0,180.04,180.03,10.44944748]
[1755864037968,10.06,180.05,180.03,5.55462978]
[1755864038374,0.06,180.05,180.04,4.8948177]
[1755864038991,0.06,180.05,180.03,5.55462978]
[1755864039280,0.06,180.05,180.04,4.8948177]
[1755864039891,0.06,180.05,180.04,10.44913896]
[1755864040264,0.06,180.05,180.04,5.55432126]
[1755864040563,0.06,180.05,180.04,10.44913896]
[1755864041964,0.06,180.05,180.04,5.55432126]
[1755864043181,0.06,180.05,180.04,5.61432126]
[1755864043391,0.06,180.05,180.04,10.50913896]
[1755864043761,0.06,180.07,180.06,26.0]
[1755864043965,0.06,180.09,180.06,41.48550129]
[1755864044166,0.06,180.09,180.08,4.8948177]
[1755864044880,10.06,180.09,180.08,4.8948177]
[1755864045493,0.06,180.09,180.08,4.8948177]
[1755864045961,0.06,180.09,180.08,10.44790521]
[1755864048172,10.0,180.08,180.07,4.8948177]
[1755864048375,10.66,180.08,180.07,4.8948177]
[1755864048590,10.66,180.08,180.04,31.55424405]
[1755864048887,10.66,180.07,180.06,4.8948177]
[1755864049289,10.0,180.07,180.06,4.8948177]
[1755864049473,10.0,180.08,180.06,4.8948177]
[1755864049677,10.06,180.09,180.07,4.8948177]
[1755864049869,10.06,180.09,180.08,4.8948177]
[1755864050180,10.72,180.09,180.08,10.44790521]
[1755864050593,10.72,180.09,180.08,4.8948177]
[1755864050773,10.72,180.09,180.08,10.44790521]
[1755864052597,10.72,180.09,180.08,4.8948177]
[1755864052974,10.72,180.09,180.06,5.55344246]
[1755864053182,10.72,180.09,180.08,4.8948177]
[1755864053387,10.06,180.09,180.08,4.8948177]
[1755864053791,0.06,180.09,180.08,4.8948177]
[1755864054710,10.72,180.09,180.08,10.44790521]
[1755864055387,10.72,180.09,180.08,4.8948177]
[1755864055604,10.0,180.08,180.07,4.8948177]
[1755864055806,10.0,180.07,180.06,5.55361773]
[1755864056015,10.66,180.07,180.06,10.44843543]
[1755864059606,10.0,180.07,180.06,10.44843543]
[1755864059813,10.06,180.09,180.06,10.44843543]
[1755864060001,0.06,180.09,180.08,4.8948177]
[1755864060201,10.72,180.09,180.06,5.55361773]
[1755864060437,10.06,180.09,180.06,5.55361773]
[1755864060733,10.06,180.09,180.08,5.55308751]
[1755864060922,10.72,180.09,180.08,10.44790521]
[1755864061120,10.06,180.09,180.08,10.44790521]
[1755864061602,0.06,180.09,180.08,10.44790521]
[1755864069038,0.06,180.09,180.08,20.95581021]
[1755864070124,0.06,180.11,180.1,26.0]
[1755864070330,0.06,180.11,180.1,44.49041171]
[1755864070635,0.06,180.11,180.1,5.55247084]
[1755864070636,10.72,180.11,180.1,5.55247084]
[1755864070950,10.72,180.11,180.1,10.44728854]
[1755864071750,10.0,180.09,180.07,10.47814449]
[1755864071917,10.66,180.09,180.08,4.8948177]
[1755864072530,10.66,180.09,180.08,10.44790521]
[1755864072747,0.66,180.09,180.08,10.44790521]
[1755864073052,0.06,180.11,180.1,26.0]
[1755864074621,0.06,180.11,180.1,31.55247084]
[1755864074833,0.72,180.11,180.1,31.55247084]
[1755864076146,0.06,180.11,180.1,31.55247084]
[1755864077444,10.74,180.11,180.1,4.8948177]
[1755864077830,0.06,180.11,180.1,30.8948177]
[1755864078233,0.06,180.11,180.1,31.17914084]
[1755864078619,0.06,180.11,180.1,44.83473485]
[1755864079020,0.06,180.11,180.1,44.77473485]
[1755864079345,0.06,180.11,180.1,50.32720569]
[1755864079734,0.06,180.11,180.1,36.73161168]
[1755864080042,0.74,180.11,180.1,36.44728854]
[1755864080240,0.06,180.11,180.1,36.44728854]
[1755864080838,0.06,180.11,180.1,46.73161168]
[1755864082123,0.06,180.11,180.1,46.44728854]
[1755864082429,0.74,180.11,180.1,46.44728854]
[1755864082635,0.06,180.11,180.1,46.44728854]
[1755864083350,0.74,180.11,180.1,10.44728854]
[1755864083550,0.74,180.11,180.1,10.06]
[1755864083723,114.9286719,180.11,180.1,8.62]
[1755864083928,10.0,180.08,180.07,0.03]
[1755864084132,14.8948177,180.08,180.07,0.03]
[1755864084356,10.58,180.08,180.07,0.03]
[1755864084736,15.4748177,180.08,180.07,0.03]
[1755864084940,19.19483821,180.08,180.07,0.03]
[1755864085547,38.34351973,180.08,180.07,0.03]
[1755864085750,42.47558085,180.08,180.07,0.03]
[1755864086642,73.65472169,180.08,180.07,0.03]
[1755864087133,49.32689933,180.08,180.07,0.03]
[1755864087335,88.57483821,180.08,180.07,0.03]
[1755864087539,106.29775944,180.08,180.07,0.03]
[1755864087854,117.02969086,180.08,180.07,0.03]
[1755864088530,26.0,180.06,180.05,0.03]
[1755864088750,52.62178565,180.06,180.05,0.03]
[1755864088965,53.20178565,180.06,180.05,0.03]
[1755864089263,63.20178565,180.06,180.05,0.03]
[1755864089631,68.7507904,180.06,180.05,0.03]
[1755864090536,0.28432314,180.04,180.03,0.03]
[1755864090842,48.61914084,180.04,180.03,0.03]
[1755864091044,62.91916135,180.04,180.03,0.03]
[1755864091558,62.61483821,180.04,180.03,0.03]
[1755864092324,112.14884254,180.04,180.03,0.03]
[1755864092730,108.03341179,180.04,180.03,0.03]
[1755864092951,86.14883273,180.04,180.03,0.03]
[1755864093362,82.03341179,180.04,180.03,0.03]
[1755864094340,23.87991715,179.98,179.97,0.03]
[1755864094577,72.18386691,179.98,179.97,0.03]
[1755864094877,101.70741611,179.98,179.97,0.03]
[1755864096140,99.41609005,179.98,179.97,0.03]
[1755864096354,107.26358901,179.98,179.97,0.03]
[1755864097184,99.41609005,179.98,179.97,0.03]
[1755864097550,107.26358901,179.98,179.97,0.03]
[1755864097949,99.41609005,179.98,179.97,0.03]
[1755864098270,107.26358901,179.98,179.97,0.03]
[1755864099199,63.86358901,179.98,179.97,0.03]
[1755864099367,107.26358901,179.98,179.97,0.03]
[1755864099880,63.86358901,179.98,179.97,0.03]
[1755864100083,107.26358901,179.98,179.97,0.03]
[1755864101287,132.31,179.93,179.9,0.65]
[1755864101482,10.0,179.91,179.9,0.65]
[1755864103096,10.0,179.91,179.9,6.20864369]
[1755864103287,53.38,179.91,179.9,6.20864369]
[1755864104476,53.38,179.91,179.9,0.65]
[1755864106594,61.22749896,179.91,179.9,0.65]
[1755864106795,53.38,179.91,179.9,0.65]
[1755864107304,10.0,179.88,179.87,13.40696357]
[1755864107486,53.34,179.88,179.87,13.40696357]
[1755864107677,53.34,179.88,179.87,5.55946461]
[1755864107881,53.34,179.88,179.87,14.08696357]
[1755864108102,53.34,179.88,179.87,6.23946461]
[1755864108488,53.34,179.88,179.87,14.08696357]
[1755864108803,53.34,179.88,179.87,0.68]
[1755864109004,53.34,179.88,179.87,6.2395708]
[1755864109516,53.34,179.88,179.87,14.08706976]
[1755864111216,53.34,179.88,179.87,6.2395708]
[1755864111383,53.34,179.88,179.87,14.08706976]
[1755864111791,43.34,179.88,179.87,14.08706976]
[1755864111991,10.0,179.88,179.87,14.08706976]
[1755864112410,53.32,179.89,179.87,14.08706976]
[1755864112591,10.0,179.88,179.87,5.5595708]
[1755864113316,10.0,179.88,179.87,6.2395708]
[1755864113817,53.32,179.89,179.87,14.08706976]
[1755864113993,53.32,179.89,179.88,8.52749896]
[1755864114315,53.32,179.89,179.88,0.68]
[1755864114613,53.32,179.89,179.87,14.08706976]
[1755864114792,10.0,179.88,179.87,13.40706976]
[1755864115590,10.0,179.88,179.87,14.08706976]
[1755864116319,10.0,179.88,179.87,14.08803017]
[1755864116521,10.0,179.88,179.87,0.68]
[1755864116725,132.4,179.87,179.86,159.18556933]
[1755864116902,185.68,179.87,179.86,159.86556933]
[1755864117630,185.68,179.87,179.86,154.27953005]
[1755864117816,53.86,179.87,179.86,154.27953005]
[1755864118005,53.28,179.87,179.86,154.95953005]
[1755864118696,53.28,179.87,179.86,154.27953005]
[1755864119301,53.28,179.87,179.86,154.95953005]
[1755864119727,10.0,179.87,179.86,165.42544923]
[1755864120034,10.0,179.88,179.86,179.32514899]
[1755864120234,10.0,179.88,179.87,5.58603928]
[1755864120597,10.0,179.9,179.88,5.55926173]
[1755864120797,10.0,179.91,179.89,0.68]
[1755864121016,10.0,179.9,179.89,0.68]
[1755864121230,10.0,179.88,179.86,154.27953005]
[1755864121403,10.0,179.87,179.86,154.27953005]
[1755864121824,10.0,179.87,179.86,159.86556933]
[1755864122038,10.0,179.87,179.86,154.95953005]
[1755864122244,10.0,179.87,179.86,154.27953005]
[1755864122530,10.0,179.87,179.86,154.95953005]
[1755864122904,53.8,179.87,179.86,165.42544923]
[1755864123112,53.8,179.87,179.86,154.27953005]
[1755864123547,53.8,179.87,179.86,159.86556933]
[1755864124121,53.8,179.87,179.86,154.95953005]
[1755864124321,53.8,179.87,179.86,154.27953005]
[1755864124917,53.8,179.87,179.86,154.95953005]
[1755864125153,43.9,179.87,179.86,165.42544923]
[1755864125352,10.0,179.88,179.86,165.42544923]
[1755864125557,10.0,179.93,179.88,0.28432314]
[1755864125850,10.0,179.94,179.89,0.68]
[1755864126552,10.0,179.93,179.89,0.68]
[1755864126727,10.0,179.93,179.9,5.55864369]
[1755864126919,10.0,179.93,179.91,0.68]
[1755864127120,10.0,179.93,179.92,4.90603928]
[1755864127426,132.4,179.97,179.92,5.58603928]
[1755864127637,0.06,179.98,179.95,4.90603928]
[1755864127843,0.06,179.98,179.96,0.28432314]
[1755864128030,0.06,179.98,179.97,5.58603928]
[1755864128235,0.06,179.98,179.97,5.87036242]
[1755864128644,0.06,179.98,179.97,11.42684405]
[1755864130369,0.06,179.98,179.97,11.41843591]
[1755864130864,0.06,179.98,179.97,14.35707174]
[1755864131362,0.06,179.98,179.97,31.06225274]
[1755864131565,0.06,179.98,179.97,23.22598577]
[1755864131976,0.06,179.98,179.97,36.82157978]
[1755864132146,0.06,179.98,179.97,80.66157978]
[1755864132569,0.06,179.98,179.97,17.66950414]
[1755864132771,0.06,179.98,179.97,30.7779296]
[1755864132976,10.06,179.98,179.97,16.705181]
[1755864133286,18.53626697,179.98,179.97,16.705181]
[1755864133579,10.7,179.98,179.9,69.86]
[1755864133755,10.0,179.94,179.91,16.705181]
[1755864133962,10.0,179.92,179.91,24.54144797]
[1755864134146,10.0,179.92,179.91,7.83626697]
[1755864134353,10.0,179.92,179.91,8.51626697]
[1755864134547,10.0,179.96,179.92,0.28432314]
[1755864134752,10.0,179.96,179.95,13.39336616]
[1755864134980,10.06,179.98,179.95,14.3576893]
[1755864135141,0.06,179.98,179.97,7.83626697]
[1755864135346,0.06,179.98,179.97,8.51626697]
[1755864136159,10.0,179.96,179.95,5.55709919]
[1755864136460,10.0,179.96,179.95,13.39336616]
[1755864136981,10.0,179.96,179.92,5.55802578]
[1755864137171,43.98,179.98,179.92,5.55802578]
[1755864137172,10.0,179.94,179.92,5.55802578]
[1755864137353,10.0,179.93,179.92,5.55802578]
[1755864137684,10.0,179.93,179.92,13.39429275]
[1755864137867,10.0,179.94,179.92,14.06429275]
[1755864138048,10.06,179.98,179.94,0.28432314]
[1755864138248,10.06,179.98,179.97,7.83626697]
[1755864138457,0.06,179.98,179.97,7.83626697]
[1755864138775,10.06,179.98,179.97,14.0627486]
[1755864139076,10.06,179.98,179.97,13.3927486]
[1755864139283,10.06,179.98,179.96,7.83626697]
[1755864139610,10.0,179.95,179.93,13.39384481]
[1755864139756,10.0,179.94,179.93,13.39384481]
[1755864139948,7.83626697,179.97,179.93,13.39384481]
[1755864139949,10.0,179.95,179.93,13.39384481]
[1755864140143,10.0,179.94,179.93,13.39384481]
[1755864140363,10.0,179.94,179.91,13.39436363]
[1755864140583,10.0,179.93,179.91,13.39436363]
[1755864140783,51.73626697,179.96,179.89,0.03]
[1755864140784,10.0,179.92,179.89,5.73111426]
[1755864141145,10.0,179.92,179.89,5.58895269]
[1755864141351,10.0,179.91,179.89,5.58895269]
[1755864141648,10.0,179.91,179.89,0.03]
[1755864141860,10.0,179.9,179.89,0.03]
[1755864142069,18.47626697,179.9,179.89,0.03]
[1755864142451,10.64,179.9,179.89,0.03]
[1755864142652,10.0,179.9,179.89,0.03]
[1755864143908,10.0,179.9,179.89,7.86626697]
[1755864144203,10.0,179.9,179.89,0.03]
[1755864144809,10.0,179.9,179.89,5.58895269]
[1755864145011,10.0,179.9,179.89,14.09521966]
[1755864145412,10.64,179.9,179.89,0.03]
[1755864145704,10.0,179.9,179.89,0.03]
[1755864146414,10.0,179.9,179.89,7.86626697]
[1755864146791,10.0,179.9,179.89,0.03]
[1755864146987,10.0,179.9,179.89,13.42521966]
[1755864147302,10.0,179.91,179.89,14.09521966]
[1755864147620,10.0,179.92,179.9,8.50626697]
[1755864147786,10.0,179.92,179.91,8.50626697]
[1755864147981,10.0,179.93,179.91,8.50626697]
[1755864148185,10.0,179.91,179.89,5.58895269]
[1755864148382,10.0,179.9,179.89,5.58895269]
[1755864148813,10.0,179.9,179.89,13.42521966]
[1755864149187,10.0,179.9,179.89,5.58895269]
[1755864149385,10.0,179.9,179.89,13.42521966]
[1755864149900,10.0,179.9,179.89,5.58895269]
[1755864150102,10.0,179.9,179.89,13.42521966]
[1755864150829,10.0,179.9,179.89,5.58895269]
[1755864151120,10.0,179.9,179.89,13.42521966]
[1755864151591,10.0,179.9,179.89,5.58895269]
[1755864152090,10.0,179.9,179.89,14.09521966]
[1755864152291,10.0,179.9,179.89,13.42521966]
[1755864152599,10.0,179.9,179.89,5.58895269]
[1755864152802,10.0,179.9,179.89,13.42521966]
[1755864153028,10.0,179.9,179.89,0.03]
[1755864153321,10.0,179.9,179.89,7.86626697]
[1755864153524,10.0,179.9,179.89,8.53626697]
[1755864154231,10.0,179.9,179.89,0.7]
[1755864154521,10.0,179.92,179.89,0.7]
[1755864154899,10.0,179.92,179.89,0.03]
[1755864155102,10.0,179.91,179.9,6.22864369]
[1755864156321,10.0,179.91,179.9,5.55864369]
[1755864157007,10.0,179.9,179.89,0.03]
[1755864157392,10.64,179.9,179.89,0.03]
[1755864157987,143.04,179.9,179.89,0.03]
[1755864158807,142.4,179.9,179.89,0.03]
[1755864159012,150.87626697,179.9,179.89,0.03]
[1755864159217,24.03491066,179.9,179.89,0.03]
[1755864159894,16.19864369,179.9,179.89,0.03]
[1755864160215,10.64,179.9,179.89,0.03]
[1755864160907,16.19864369,179.9,179.89,0.03]
[1755864162413,29.7942377,179.9,179.89,0.03]
[1755864162609,37.63050467,179.9,179.89,0.03]
[1755864162821,32.07186098,179.9,179.89,0.03]
[1755864163011,37.63050467,179.9,179.89,0.03]
[1755864163489,17.83626697,179.9,179.89,0.03]
[1755864163819,10.0,179.9,179.89,0.03]
[1755864164320,10.0,179.9,179.89,0.7]
[1755864164501,10.0,179.9,179.89,7.86626697]
[1755864164821,10.0,179.9,179.89,0.03]
[1755864165330,10.0,179.9,179.89,14.09521966]
[1755864165504,10.0,179.9,179.89,0.7]
[1755864165824,10.0,179.9,179.89,8.53626697]
[1755864166115,54.04,179.91,179.89,8.53626697]
[1755864166321,10.0,179.91,179.9,0.67]
[1755864166699,10.0,179.92,179.9,0.67]
[1755864166895,10.0,179.91,179.9,7.83626697]
[1755864167096,10.0,179.9,179.89,0.03]
[1755864169319,10.0,179.9,179.89,0.71]
[1755864169834,10.0,179.9,179.89,0.03]
[1755864171131,24.03491066,179.9,179.89,0.03]
[1755864172204,29.7942377,179.9,179.89,0.03]
[1755864172532,37.63050467,179.9,179.89,0.03]
[1755864174857,36.99050467,179.9,179.89,0.03]
[1755864175250,29.7942377,179.9,179.89,0.03]
[1755864175437,37.63050467,179.9,179.89,0.03]
[1755864175864,33.49045006,179.9,179.89,0.03]
[1755864176038,41.32671703,179.9,179.89,0.03]
[1755864176237,37.63050467,179.9,179.89,0.03]
[1755864176767,41.32788287,179.9,179.89,0.03]
[1755864177262,40.68788287,179.9,179.89,0.03]
[1755864177468,41.32788287,179.9,179.89,0.03]
[1755864178166,40.68788287,179.9,179.89,0.03]
[1755864178331,41.61220601,179.9,179.89,0.03]
[1755864179462,37.88557449,179.9,179.89,0.03]
[1755864179642,45.72184146,179.9,179.89,0.03]
[1755864180232,49.87991715,179.88,179.87,0.03]
[1755864180462,105.35356232,179.88,179.87,0.03]
[1755864180627,105.06923918,179.88,179.87,0.03]
[1755864180827,10.0,179.88,179.87,0.71]
[1755864181059,53.94,179.88,179.87,0.71]
[1755864181491,61.77626697,179.88,179.87,0.03]
[1755864181805,75.37186098,179.88,179.87,0.03]
[1755864182086,54.0,179.88,179.87,0.71]
[1755864182387,10.0,179.88,179.87,14.10583777]
[1755864182695,10.0,179.88,179.87,0.03]
[1755864182696,61.83626697,179.88,179.87,0.03]
[1755864183060,54.0,179.88,179.87,0.03]
[1755864183367,61.87626697,179.88,179.87,0.03]
[1755864183861,54.04,179.88,179.87,0.03]
[1755864184060,61.87626697,179.88,179.87,0.03]
[1755864184261,54.04,179.88,179.87,0.03]
[1755864184463,54.04,179.88,179.87,0.71]
[1755864184777,61.87626697,179.88,179.87,0.03]
[1755864185690,85.3776643,179.88,179.87,0.03]
[1755864185874,85.66198744,179.88,179.87,0.03]
[1755864186072,89.78006685,179.88,179.87,0.03]
[1755864186871,10.0,179.72,179.68,16.89202872]
[1755864187075,54.02,179.72,179.71,7.86644947]
[1755864187287,10.0,179.72,179.71,7.86644947]
[1755864187671,44.04,179.74,179.71,7.86644947]
[1755864187873,10.0,179.73,179.71,0.0301825]
[1755864188181,10.0,179.73,179.71,5.59470311]
[1755864188371,54.04,179.72,179.71,0.0301825]
[1755864189065,54.04,179.72,179.71,6.27470311]
[1755864189294,54.04,179.72,179.71,14.11097008]
[1755864189780,54.04,179.72,179.71,0.0301825]
[1755864189981,10.0,179.72,179.71,6.27470311]
[1755864190188,54.14,179.72,179.71,6.27470311]
[1755864190363,40.29559401,179.78,179.71,14.11097008]
[1755864190364,10.0,179.73,179.71,14.11097008]
[1755864190564,54.14,179.73,179.72,8.51626697]
[1755864190765,10.0,179.73,179.72,8.51626697]
[1755864190965,10.0,179.73,179.72,0.68]
[1755864191369,10.0,179.73,179.72,14.08047796]
[1755864191768,13.59559401,179.81,179.72,14.08047796]
[1755864191769,10.0,179.75,179.72,14.08047796]
[1755864191973,10.0,179.75,179.74,7.83626697]
[1755864192289,10.0,179.75,179.74,8.51626697]
[1755864192489,10.0,179.75,179.74,0.68]
[1755864192673,10.0,179.75,179.74,8.51626697]
[1755864193305,49.89386763,179.8,179.77,5.5626634]
[1755864193588,94.05386763,179.8,179.79,7.83626697]
[1755864193789,44.16,179.8,179.79,8.51626697]
[1755864194096,8.53626697,179.86,179.79,8.51626697]
[1755864194269,26.0,179.87,179.77,5.5626634]
[1755864194270,7.83626697,179.83,179.77,5.5626634]
[1755864194471,52.03626697,179.82,179.77,5.5626634]
[1755864194673,7.83626697,179.78,179.72,5.56421099]
[1755864194975,44.22,179.77,179.73,7.83626697]
[1755864195185,44.22,179.77,179.73,8.51626697]
[1755864195603,44.22,179.77,179.74,5.56359185]
[1755864195775,52.05626697,179.77,179.73,7.83626697]
[1755864196100,44.22,179.77,179.74,7.83626697]
[1755864196583,44.22,179.77,179.74,8.51626697]
[1755864196781,0.7,179.76,179.72,5.56421099]
[1755864196982,44.22,179.77,179.74,7.83626697]
[1755864197179,44.87,179.77,179.74,7.83626697]
[1755864197705,44.87,179.77,179.74,13.39984697]
[1755864197881,44.22,179.77,179.74,5.56358]
[1755864198079,0.65,179.76,179.72,5.56401186]
[1755864198372,0.65,179.75,179.72,5.56401186]
[1755864198577,44.2,179.74,179.72,5.56401186]
[1755864199400,0.65,179.73,179.71,0.0301825]
[1755864199729,0.65,179.73,179.71,0.0601825]
[1755864199730,8.48626697,179.73,179.71,0.0601825]
[1755864200203,0.65,179.72,179.71,0.0601825]
[1755864200972,8.48626697,179.72,179.71,0.0601825]
[1755864201173,22.08186098,179.72,179.71,0.0601825]
[1755864201610,0.65,179.72,179.71,0.0601825]
[1755864201810,52.70626697,179.72,179.71,0.0601825]
[1755864201970,71.86607197,179.72,179.71,0.0601825]
[1755864202169,72.15039511,179.72,179.71,0.0601825]
[1755864202501,66.30186098,179.72,179.71,0.0601825]
[1755864202702,52.70626697,179.72,179.71,0.0601825]
[1755864202904,13.59559401,179.74,179.71,0.0601825]
[1755864203084,44.22,179.73,179.71,0.0601825]
[1755864203288,7.83626697,179.72,179.71,0.0601825]
[1755864203499,22.08186098,179.72,179.71,0.0601825]
[1755864204019,27.93039511,179.72,179.71,0.0601825]
[1755864204187,20.09412814,179.72,179.71,0.0601825]
[1755864204987,20.09412814,179.72,179.68,0.16449172]
[1755864204988,26.0,179.69,179.68,0.16449172]
[1755864205187,91.99618412,179.69,179.68,0.16449172]
[1755864205387,92.64618412,179.69,179.68,0.16449172]
[1755864205615,98.21132408,179.69,179.68,0.16449172]
[1755864206395,101.88261433,179.69,179.68,0.16449172]
[1755864207220,94.04634736,179.69,179.68,0.16449172]
[1755864207519,101.88261433,179.69,179.68,0.16449172]
[1755864207704,94.04634736,179.69,179.68,0.16449172]
[1755864207892,101.88261433,179.69,179.68,0.16449172]
[1755864208420,39.87991715,179.66,179.65,0.09]
[1755864208587,84.15991715,179.66,179.65,0.09]
[1755864208792,92.50402255,179.66,179.65,0.09]
[1755864209215,92.36186098,179.66,179.65,0.09]
[1755864209419,26.0,179.67,179.65,0.09]
[1755864209613,158.4,179.66,179.65,0.09]
[1755864209810,210.51626697,179.66,179.65,0.09]
[1755864210220,216.08233621,179.66,179.65,0.09]
[1755864210417,132.4,179.66,179.65,0.75]
[1755864210723,44.34,179.66,179.65,14.15264604]
[1755864211292,44.34,179.66,179.65,8.58626697]
[1755864211526,44.34,179.66,179.65,6.31637907]
[1755864211732,44.34,179.66,179.65,14.15264604]
[1755864211900,44.36,179.69,179.65,6.31637907]
[1755864212236,0.06,179.77,179.68,7.83626697]
[1755864212394,44.38,179.76,179.72,7.83626697]
[1755864212725,0.06,179.77,179.75,7.83626697]
[1755864212894,0.06,179.77,179.76,7.83626697]
[1755864213095,44.46,179.77,179.76,8.49626697]
[1755864213320,0.06,179.77,179.76,0.66]
[1755864213490,0.06,179.77,179.76,14.05923982]
[1755864213691,0.06,179.77,179.76,8.49626697]
[1755864214314,0.06,179.77,179.76,0.66]
[1755864214514,0.06,179.77,179.76,8.49626697]
[1755864215594,0.06,179.77,179.76,0.66]
[1755864215800,0.06,179.77,179.76,8.49626697]
[1755864215995,0.06,179.77,179.76,14.05923982]
[1755864216441,0.06,179.79,179.76,14.05923982]
[1755864216601,0.06,179.79,179.78,7.83626697]
[1755864217425,0.06,179.79,179.78,8.49626697]
[1755864217621,0.06,179.79,179.78,14.05862095]
[1755864217799,0.06,179.79,179.78,14.34294409]
[1755864218205,0.06,179.79,179.78,6.50667712]
[1755864218555,0.06,179.79,179.78,8.49626697]
[1755864218921,0.06,179.79,179.77,7.83626697]
[1755864219119,44.46,179.79,179.76,8.49626697]
[1755864219347,0.06,179.77,179.76,8.49626697]
[1755864219833,0.06,179.77,179.76,14.05923982]
[1755864220430,0.06,179.79,179.76,14.34356296]
[1755864220750,0.06,179.79,179.78,34.12059011]
[1755864220930,0.06,179.79,179.78,26.28432314]
[1755864221127,0.06,179.79,179.78,34.49626697]
[1755864221316,0.06,179.79,179.78,34.78059011]
[1755864221517,0.06,179.79,179.78,26.94432314]
[1755864221736,0.06,179.79,179.78,34.78059011]
[1755864221926,0.06,179.79,179.76,5.56297285]
[1755864221927,0.06,179.79,179.75,0.66]
[1755864222133,44.46,179.79,179.73,6.2239014]
[1755864222330,45.11,179.79,179.76,7.83626697]
[1755864222550,44.46,179.79,179.76,7.83626697]
[1755864222935,44.46,179.79,179.78,7.83626697]
[1755864223541,44.46,179.79,179.78,8.49626697]
[1755864223754,0.06,179.79,179.78,8.49626697]
[1755864223925,0.06,179.79,179.78,14.05862095]
[1755864224129,0.06,179.79,179.78,7.83626697]
[1755864224333,0.06,179.79,179.76,6.22292953]
[1755864224535,0.06,179.79,179.78,7.83626697]
[1755864224949,0.06,179.79,179.78,8.12059011]
[1755864225255,0.06,179.79,179.78,8.78059011]
[1755864225933,0.06,179.79,179.78,14.34294409]
[1755864227849,0.06,179.83,179.79,0.28432314]
[1755864228049,0.06,179.83,179.82,7.83626697]
[1755864228226,0.06,179.83,179.82,8.51626697]
[1755864228530,0.06,179.83,179.82,8.80059011]
[1755864229435,0.06,179.83,179.82,22.39618412]
[1755864229760,0.06,179.83,179.82,27.95730079]
[1755864234950,132.4,179.9,179.84,0.28432314]
[1755864235269,132.4,179.9,179.89,7.83626697]
[1755864235762,133.07,179.9,179.89,7.83626697]
[1755864236266,146.46491066,179.9,179.86,7.83626697]
[1755864236458,133.07,179.89,179.86,7.83626697]
[1755864236656,133.07,179.89,179.88,7.83626697]
[1755864236857,133.07,179.89,179.83,0.96432314]
[1755864237043,133.07,179.89,179.88,7.83626697]
[1755864237244,140.90626697,179.89,179.83,7.83626697]
[1755864237458,7.83626697,179.87,179.82,7.83626697]
[1755864237959,0.06,179.83,179.82,7.83626697]
[1755864238746,8.56626697,179.83,179.78,0.03]
[1755864239064,0.67,179.82,179.79,7.83626697]
[1755864239270,0.67,179.81,179.78,0.03]
[1755864239474,0.67,179.81,179.79,7.83626697]
[1755864239850,0.73,179.83,179.79,7.83626697]
[1755864240051,0.06,179.83,179.79,7.83626697]
[1755864240250,0.06,179.83,179.81,7.83626697]
[1755864240456,0.06,179.83,179.79,7.83626697]
[1755864240457,0.67,179.82,179.79,7.83626697]
[1755864240645,0.06,179.83,179.8,7.83626697]
[1755864241076,0.67,179.82,179.78,5.59227374]
[1755864241374,0.67,179.81,179.78,5.59227374]
[1755864241673,0.06,179.83,179.78,6.27227374]